[Event "European-ch Seniors 2018"]
[Site "Drammen"]
[Date "2018.08.09"]
[Round "6"]
[White "Ali, Karim"]
[Black "Krohg, Georg A"]
[Result "1-0"]
[ECO "A01"]
[WhiteElo "1819"]
[BlackElo "1956"]
[Annotator "NA"]
[PlyCount "65"]
[EventDate "2018.08.04"]
[EventType "swiss"]
[EventCountry "NOR"]
[SourceTitle "playchess.com"]
[Source "ChessBase"]
[SourceQuality "1"]
[TimeControl "40/5400+30:1800+30"]

1. b3 {[%emt 0:00:00]} e5 {[%emt 0:01:08]} 2. Bb2 {[%emt 0:00:00]} Nc6 {[%emt 0:00:58]} 3. e3 {[%emt 0:00:00]} d5 {[%emt 0:00:44]} 4. Bb5 {[%emt 0:00:00]} Bd6 {[%emt 0:00:30]} 5. Nf3 {[%emt 0:00:24]} f6 {[%emt 0:00:23]} 6. h3 {[%emt 0:05:25]} Nge7 {[%emt 0:00:49]} 7. d4 {[%emt 0:03:43]} e4 {[%emt 0:02:16]} 8. Nfd2 {[%emt 0:02:36]} Bd7 {[%emt 0:01:51]} 9. a3 {[%emt 0:05:09]} a6 {[%emt 0:25:36]} 10. Bf1 {[%emt 0:01:05]} Na7 {[%emt 0:03:21]} 11. c4 {[%emt 0:01:03]} c6 {[%emt 0:00:06]} 12. Nc3 {[%emt 0:01:17]} f5 {[%emt 0:02:28]} 13. Qh5+ {[%emt 0:02:19]} g6 {[%emt 0:01:46]} 14. Qd1 {[%emt 0:12:22]} f4 {[%emt 0:02:37]} 15. exf4 {[%emt 0:07:19]} Bxf4 {[%emt 0:00:50]} 16. g3 {[%emt 0:00:05]} Bc7 {[%emt 0:01:49]} 17. Ncxe4 {[%emt 0:09:05]} dxe4 {[%emt 0:03:04]} 18. Nxe4 {[%emt 0:00:21]} Rf8 {[%emt 0:09:03]} 19. d5 {[%emt 0:00:50]} Nxd5 {[%emt 0:01:10]} 20. cxd5 {[%emt 0:00:40]} Qe7 {[%emt 0:00:33]} 21. Qe2 {[%emt 0:02:24]} O-O-O {[%emt 0:06:13]} 22. Nc3 {[%emt 0:19:31]} Qg5 {[%emt 0:24:51]} 23. h4 {[%emt 0:01:02]} Qh6 {[%emt 0:00:14]} 24. Bg2 {[%emt 0:07:56]} Rde8 {[%emt 0:02:13]} 25. Be4 {[%emt 0:00:12]} cxd5 {[%emt 0:01:18]} 26. Nxd5 {[%emt 0:00:37]} Re6 {[%emt 0:06:10]} 27. Nxc7 {[%emt 0:01:47]} Kxc7 {[%emt 0:00:01]} 28. Qc4+ {[%emt 0:00:08]} Rc6 {[%emt 0:00:51]} 29. Be5+ {[%emt 0:00:58]} Kc8 {[%emt 0:00:38]} 30. Bxc6 {[%emt 0:00:11]} Bxc6 {[%emt 0:00:10]} 31. Qe6+ {[%emt 0:00:14]} Bd7 {[%emt 0:00:15]} 32. Qd6 {[%emt 0:00:36]} Nc6 {[%emt 0:01:30]} 33. Qc7# 1-0

[Event "European-ch Seniors 2018"]
[Site "Drammen"]
[Date "2018.08.10"]
[Round "7"]
[White "Vorotnikov, Vladislav V"]
[Black "Stebbings, Anthony"]
[Result "1/2-1/2"]
[ECO "B40"]
[WhiteElo "2445"]
[BlackElo "2265"]
[Annotator "NA"]
[PlyCount "84"]
[EventDate "2018.08.04"]
[EventType "swiss"]
[EventCountry "NOR"]
[SourceTitle "playchess.com"]
[Source "ChessBase"]
[SourceQuality "1"]
[TimeControl "40/5400+30:1800+30"]

1. e4 {[%emt 0:00:00]} c5 {[%emt 0:00:00]} 2. Nf3 {[%emt 0:00:00]} e6 {[%emt 0:00:00]} 3. c3 {[%emt 0:00:56]} Nf6 {[%emt 0:00:00]} 4. e5 {[%emt 0:00:06]} Nd5 {[%emt 0:00:00]} 5. g3 {[%emt 0:01:49]} d6 {[%emt 0:00:30]} 6. exd6 {[%emt 0:00:56]} Bxd6 {[%emt 0:01:47]} 7. d4 {[%emt 0:00:23]} O-O {[%emt 0:03:09]} 8. Bg2 {[%emt 0:04:56]} Nc6 {[%emt 0:09:23]} 9. O-O {[%emt 0:00:44]} cxd4 {[%emt 0:05:10]} 10. Nxd4 {[%emt 0:00:49]} Nxd4 {[%emt 0:01:33]} 11. Qxd4 {[%emt 0:00:07]} Qc7 {[%emt 0:01:26]} 12. Nd2 {[%emt 0:04:06]} Rd8 {[%emt 0:03:10]} 13. Nc4 {[%emt 0:07:32]} Be7 {[%emt 0:05:29]} 14. Ne3 {[%emt 0:09:45]} Nxe3 {[%emt 0:02:04]} 15. Qxe3 {[%emt 0:00:05]} Bd7 {[%emt 0:01:57]} 16. Qe2 {[%emt 0:01:00]} Bc6 {[%emt 0:01:55]} 17. Qc4 {[%emt 0:06:24]} Rac8 {[%emt 0:02:01]} 18. Be3 {[%emt 0:01:53]} Bxg2 {[%emt 0:04:56]} 19. Qxc7 {[%emt 0:00:08]} Rxc7 {[%emt 0:00:03]} 20. Kxg2 {[%emt 0:00:06]} b6 {[%emt 0:08:31]} 21. Rfd1 {[%emt 0:01:30]} Rcd7 {[%emt 0:08:26]} 22. Rxd7 {[%emt 0:00:14]} Rxd7 {[%emt 0:00:02]} 23. a4 {[%emt 0:01:28]} Bc5 {[%emt 0:03:34]} 24. Kf3 {[%emt 0:04:45]} Kf8 {[%emt 0:13:56]} 25. b4 {[%emt 0:09:36]} Bxe3 {[%emt 0:00:08]} 26. Kxe3 {[%emt 0:00:05]} Ke7 {[%emt 0:01:18]} 27. c4 {[%emt 0:05:31]} Kd8 {[%emt 0:04:10]} 28. a5 {[%emt 0:01:14]} Kc7 {[%emt 0:00:10]} 29. axb6+ {[%emt 0:01:10]} Kxb6 {[%emt 0:00:08]} 30. f4 {[%emt 0:04:32]} f6 {[%emt 0:03:44]} 31. h4 {[%emt 0:07:09]} e5 {[%emt 0:05:21]} 32. fxe5 {[%emt 0:00:19]} fxe5 {[%emt 0:00:01]} 33. Ra5 {[%emt 0:01:04]} Rd4 {[%emt 0:00:54]} 34. Rb5+ {[%emt 0:15:22]} Kc6 {[%emt 0:00:48]} 35. Ra5 {[%emt 0:03:04]} Kb6 {[%emt 0:02:37]} 36. c5+ {[%emt 0:01:33]} Kb7 {[%emt 0:00:13]} 37. c6+ {[%emt 0:00:21]} Kxc6 {[%emt 0:00:20]} 38. Rxa7 {[%emt 0:00:05]} Rg4 {[%emt 0:01:16]} 39. Kf3 {[%emt 0:00:09]} h5 {[%emt 0:00:15]} 40. b5+ {[%emt 0:00:00]} Kxb5 {[%emt 0:00:00]} 41. Re7 {[%emt 0:03:30]} Kc6 {[%emt 0:03:10]} 42. Rxe5 {[%emt 0:00:06]} g6 {[%emt 0:00:54]} 1/2-1/2

[Event "European-ch Seniors 2018"]
[Site "Drammen"]
[Date "2018.08.10"]
[Round "7"]
[White "Ogaard, Leif"]
[Black "Werner, Clemens"]
[Result "1/2-1/2"]
[ECO "E63"]
[WhiteElo "2386"]
[BlackElo "2258"]
[Annotator "NA"]
[PlyCount "46"]
[EventDate "2018.08.04"]
[EventType "swiss"]
[EventCountry "NOR"]
[SourceTitle "playchess.com"]
[Source "ChessBase"]
[SourceQuality "1"]
[TimeControl "40/5400+30:1800+30"]

1. d4 {[%emt 0:00:00]} Nf6 {[%emt 0:00:00]} 2. c4 {[%emt 0:00:07]} d6 {[%emt 0:00:06]} 3. Nc3 {[%emt 0:03:19]} g6 {[%emt 0:00:28]} 4. g3 {[%emt 0:01:12]} Bg7 {[%emt 0:00:09]} 5. Bg2 {[%emt 0:00:21]} O-O {[%emt 0:00:10]} 6. Nf3 {[%emt 0:01:05]} Nc6 {[%emt 0:00:16]} 7. O-O {[%emt 0:00:15]} a6 {[%emt 0:00:19]} 8. d5 {[%emt 0:00:36]} Na5 {[%emt 0:00:10]} 9. Nd2 {[%emt 0:00:17]} c5 {[%emt 0:00:19]} 10. Rb1 {[%emt 0:01:01]} Rb8 {[%emt 0:03:36]} 11. b3 {[%emt 0:02:38]} e5 {[%emt 0:06:34]} 12. dxe6 {[%emt 0:05:30]} Bxe6 {[%emt 0:02:27]} 13. Nde4 {[%emt 0:04:54]} Nxe4 {[%emt 0:06:56]} 14. Nxe4 {[%emt 0:00:08]} Bf5 {[%emt 0:00:51]} 15. Bf4 {[%emt 0:01:00]} Be5 {[%emt 0:04:41]} 16. Nxd6 {[%emt 0:20:06]} Bxd6 {[%emt 0:29:59]} 17. Qxd6 {[%emt 0:02:15]} Bxb1 {[%emt 0:00:43]} 18. Qxb8 {[%emt 0:00:18]} Qxb8 {[%emt 0:00:59]} 19. Bxb8 {[%emt 0:00:07]} Bxa2 {[%emt 0:01:11]} 20. Bd6 {[%emt 0:00:13]} Re8 {[%emt 0:00:16]} 21. Bxc5 {[%emt 0:25:07]} Bxb3 {[%emt 0:09:00]} 22. Ra1 {[%emt 0:01:01]} Rxe2 {[%emt 0:06:13]} 23. Bb4 {[%emt 0:14:32]} Nc6 {[%emt 0:01:03]} 1/2-1/2

[Event "European-ch Seniors 2018"]
[Site "Drammen"]
[Date "2018.08.10"]
[Round "7"]
[White "Renman, Nils-Gustaf"]
[Black "Hedin, Gunnar"]
[Result "1/2-1/2"]
[ECO "A88"]
[WhiteElo "2348"]
[BlackElo "2179"]
[Annotator "NA"]
[PlyCount "84"]
[EventDate "2018.08.04"]
[EventType "swiss"]
[EventCountry "NOR"]
[SourceTitle "playchess.com"]
[Source "ChessBase"]
[SourceQuality "1"]
[TimeControl "40/5400+30:1800+30"]

1. d4 {[%emt 0:00:00]} d6 {[%emt 0:00:00]} 2. Nf3 {[%emt 0:00:00]} f5 {[%emt 0:00:00]} 3. c4 {[%emt 0:00:02]} Nf6 {[%emt 0:00:04]} 4. g3 {[%emt 0:00:20]} g6 {[%emt 0:00:04]} 5. Bg2 {[%emt 0:00:09]} Bg7 {[%emt 0:00:06]} 6. Nc3 {[%emt 0:00:43]} O-O {[%emt 0:00:10]} 7. O-O {[%emt 0:00:11]} c6 {[%emt 0:00:03]} 8. Qc2 {[%emt 0:08:17]} Qc7 {[%emt 0:07:00]} 9. d5 {[%emt 0:16:18]} e5 {[%emt 0:14:39]} 10. dxe6 {[%emt 0:00:10]} Bxe6 {[%emt 0:00:06]} 11. b3 {[%emt 0:02:53]} Na6 {[%emt 0:00:22]} 12. Ng5 {[%emt 0:02:27]} Rfe8 {[%emt 0:04:02]} 13. Bb2 {[%emt 0:03:20]} Rad8 {[%emt 0:06:49]} 14. Nxe6 {[%emt 0:02:11]} Rxe6 {[%emt 0:00:18]} 15. Rad1 {[%emt 0:05:22]} Rde8 {[%emt 0:01:41]} 16. e3 {[%emt 0:00:45]} Nc5 {[%emt 0:09:49]} 17. b4 {[%emt 0:03:02]} Nce4 {[%emt 0:02:22]} 18. Ne2 {[%emt 0:03:38]} R6e7 {[%emt 0:10:27]} 19. Rd3 {[%emt 0:02:06]} Ng5 {[%emt 0:05:44]} 20. Rfd1 {[%emt 0:02:01]} Nf7 {[%emt 0:00:13]} 21. Qb3 {[%emt 0:10:01]} Ne4 {[%emt 0:05:12]} 22. Bxg7 {[%emt 0:00:38]} Kxg7 {[%emt 0:00:09]} 23. Qb2+ {[%emt 0:01:57]} Kg8 {[%emt 0:01:07]} 24. f3 {[%emt 0:06:47]} Neg5 {[%emt 0:01:21]} 25. f4 {[%emt 0:00:49]} Ne4 {[%emt 0:01:03]} 26. Nc3 {[%emt 0:00:25]} Nxc3 {[%emt 0:05:09]} 27. Qxc3 {[%emt 0:00:09]} a6 {[%emt 0:02:15]} 28. h3 {[%emt 0:00:46]} Re6 {[%emt 0:00:39]} 29. a4 {[%emt 0:05:13]} Qe7 {[%emt 0:05:06]} 30. Kf2 {[%emt 0:00:17]} g5 {[%emt 0:00:40]} 31. Bf3 {[%emt 0:03:25]} Rh6 {[%emt 0:05:05]} 32. Bg2 {[%emt 0:10:10]} gxf4 {[%emt 0:02:33]} 33. exf4 {[%emt 0:00:26]} Qe2+ {[%emt 0:00:27]} 34. Kg1 {[%emt 0:00:05]} Rg6 {[%emt 0:00:28]} 35. Qd2 {[%emt 0:01:55]} Qxd2 {[%emt 0:03:05]} 36. R1xd2 {[%emt 0:00:08]} Re1+ {[%emt 0:01:24]} 37. Kf2 {[%emt 0:00:56]} Rc1 {[%emt 0:01:15]} 38. Rd4 {[%emt 0:03:34]} Rc3 {[%emt 0:03:34]} 39. R2d3 {[%emt 0:02:59]} Rc2+ {[%emt 0:01:11]} 40. Rd2 {[%emt 0:00:00]} Rc3 {[%emt 0:00:00]} 41. R2d3 {[%emt 0:10:12]} Rc2+ {[%emt 0:01:11]} 42. Rd2 {[%emt 0:00:16]} Rc3 {[%emt 0:01:51]} 1/2-1/2

[Event "European-ch Seniors 2018"]
[Site "Drammen"]
[Date "2018.08.10"]
[Round "7"]
[White "Gaprindashvili, Nona"]
[Black "Karason, Askell Orn"]
[Result "1/2-1/2"]
[ECO "A41"]
[WhiteElo "2305"]
[BlackElo "2217"]
[Annotator "NA"]
[PlyCount "100"]
[EventDate "2018.08.04"]
[EventType "swiss"]
[EventCountry "NOR"]
[SourceTitle "playchess.com"]
[Source "ChessBase"]
[SourceQuality "1"]
[TimeControl "40/5400+30:1800+30"]

1. d4 {[%emt 0:00:00]} d6 {[%emt 0:00:00]} 2. c4 {[%emt 0:00:00]} e5 {[%emt 0:00:00]} 3. Nc3 {[%emt 0:00:03]} exd4 {[%emt 0:00:00]} 4. Qxd4 {[%emt 0:00:07]} Nc6 {[%emt 0:00:00]} 5. Qd2 {[%emt 0:00:02]} Nf6 {[%emt 0:00:17]} 6. b3 {[%emt 0:00:24]} Be6 {[%emt 0:00:41]} 7. e4 {[%emt 0:01:42]} a5 {[%emt 0:00:30]} 8. f3 {[%emt 0:09:31]} g6 {[%emt 0:04:56]} 9. Bb2 {[%emt 0:02:37]} Bg7 {[%emt 0:01:49]} 10. Nge2 {[%emt 0:01:49]} a4 {[%emt 0:01:36]} 11. Rd1 {[%emt 0:05:23]} axb3 {[%emt 0:03:18]} 12. axb3 {[%emt 0:00:02]} O-O {[%emt 0:00:18]} 13. g3 {[%emt 0:11:29]} Nd7 {[%emt 0:14:14]} 14. Nb5 {[%emt 0:16:15]} Nce5 {[%emt 0:04:36]} 15. Bxe5 {[%emt 0:07:42]} dxe5 {[%emt 0:12:47]} 16. Nc1 {[%emt 0:05:33]} c6 {[%emt 0:01:30]} 17. Nc3 {[%emt 0:00:37]} Qb6 {[%emt 0:09:44]} 18. Na4 {[%emt 0:00:29]} Qa7 {[%emt 0:03:47]} 19. Qf2 {[%emt 0:00:13]} Qa5+ {[%emt 0:01:30]} 20. Qd2 {[%emt 0:00:01]} Qxd2+ {[%emt 0:04:18]} 21. Kxd2 {[%emt 0:01:52]} Rfd8 {[%emt 0:07:14]} 22. Kc3 {[%emt 0:03:52]} Bf8 {[%emt 0:01:26]} 23. Be2 {[%emt 0:00:36]} Nc5 {[%emt 0:00:25]} 24. Rxd8 {[%emt 0:03:23]} Rxd8 {[%emt 0:02:50]} 25. Nd3 {[%emt 0:00:30]} Nxa4+ {[%emt 0:02:20]} 26. bxa4 {[%emt 0:00:03]} Ra8 {[%emt 0:00:10]} 27. Rb1 {[%emt 0:01:45]} Rxa4 {[%emt 0:01:11]} 28. Rxb7 {[%emt 0:09:48]} Rxc4+ {[%emt 0:00:55]} 29. Kd2 {[%emt 0:04:07]} f6 {[%emt 0:05:08]} 30. Bd1 {[%emt 0:03:33]} Rd4 {[%emt 0:04:31]} 31. Kc3 {[%emt 0:00:52]} c5 {[%emt 0:02:13]} 32. Bc2 {[%emt 0:01:57]} c4 {[%emt 0:00:36]} 33. Nf4 {[%emt 0:00:50]} Bf7 {[%emt 0:00:37]} 34. Nd5 {[%emt 0:00:11]} Bxd5 {[%emt 0:05:01]} 35. exd5 {[%emt 0:00:02]} Bh6 {[%emt 0:00:34]} 36. Rd7 {[%emt 0:06:51]} Bd2+ {[%emt 0:00:19]} 37. Kb2 {[%emt 0:00:02]} Bb4 {[%emt 0:01:31]} 38. h4 {[%emt 0:02:18]} Be1 {[%emt 0:00:26]} 39. h5 {[%emt 0:00:03]} gxh5 {[%emt 0:00:32]} 40. Bxh7+ {[%emt 0:00:00]} Kf8 {[%emt 0:00:00]} 41. Bg6 {[%emt 0:01:49]} c3+ {[%emt 0:01:16]} 42. Kb3 {[%emt 0:01:13]} Rb4+ {[%emt 0:07:55]} 43. Ka3 {[%emt 0:04:40]} Rc4 {[%emt 0:01:04]} 44. Kb3 {[%emt 0:00:14]} Rb4+ {[%emt 0:00:03]} 45. Ka3 {[%emt 0:00:38]} Rb6 {[%emt 0:03:21]} 46. d6 {[%emt 0:17:30]} c2 {[%emt 0:07:58]} 47. Bxc2 {[%emt 0:00:10]} Bb4+ {[%emt 0:00:02]} 48. Ka4 {[%emt 0:00:43]} Rxd6 {[%emt 0:02:41]} 49. Rxd6 {[%emt 0:00:08]} Bxd6 {[%emt 0:00:03]} 50. Bg6 {[%emt 0:00:06]} Kg7 1/2-1/2

[Event "European-ch Seniors 2018"]
[Site "Drammen"]
[Date "2018.08.10"]
[Round "7"]
[White "Clark, Gary M"]
[Black "Zimmermann, Luc"]
[Result "1/2-1/2"]
[ECO "D85"]
[WhiteElo "2285"]
[BlackElo "2184"]
[Annotator "NA"]
[PlyCount "96"]
[EventDate "2018.08.04"]
[EventType "swiss"]
[EventCountry "NOR"]
[SourceTitle "playchess.com"]
[Source "ChessBase"]
[SourceQuality "1"]
[TimeControl "40/5400+30:1800+30"]

1. d4 {[%emt 0:00:00]} Nf6 {[%emt 0:00:00]} 2. c4 {[%emt 0:00:03]} g6 {[%emt 0:00:00]} 3. Nc3 {[%emt 0:00:42]} d5 {[%emt 0:00:00]} 4. Nf3 {[%emt 0:00:32]} Bg7 {[%emt 0:00:00]} 5. cxd5 {[%emt 0:00:27]} Nxd5 {[%emt 0:00:00]} 6. e4 {[%emt 0:00:10]} Nxc3 {[%emt 0:00:00]} 7. bxc3 {[%emt 0:00:04]} c5 {[%emt 0:00:06]} 8. Rb1 {[%emt 0:00:33]} O-O {[%emt 0:00:14]} 9. Be2 {[%emt 0:00:15]} cxd4 {[%emt 0:00:14]} 10. cxd4 {[%emt 0:00:02]} Qa5+ {[%emt 0:00:11]} 11. Bd2 {[%emt 0:00:14]} Qxa2 {[%emt 0:00:02]} 12. O-O {[%emt 0:00:12]} Bg4 {[%emt 0:00:14]} 13. Bg5 {[%emt 0:00:13]} h6 {[%emt 0:00:08]} 14. Bh4 {[%emt 0:00:13]} g5 {[%emt 0:20:14]} 15. Bg3 {[%emt 0:00:08]} Nc6 {[%emt 0:11:32]} 16. d5 {[%emt 0:01:36]} Bxf3 {[%emt 0:05:51]} 17. Bxf3 {[%emt 0:00:47]} Ne5 {[%emt 0:19:13]} 18. Rxb7 {[%emt 0:00:59]} e6 {[%emt 0:06:39]} 19. h4 {[%emt 0:11:40]} Rab8 {[%emt 0:16:12]} 20. Rc7 {[%emt 0:11:56]} Qa5 {[%emt 0:04:31]} 21. Qc1 {[%emt 0:06:00]} gxh4 {[%emt 0:08:51]} 22. Bxe5 {[%emt 0:05:19]} Bxe5 {[%emt 0:00:19]} 23. Rc5 {[%emt 0:00:02]} Rb5 {[%emt 0:01:48]} 24. Rxb5 {[%emt 0:02:03]} Qxb5 {[%emt 0:00:01]} 25. Qxh6 {[%emt 0:01:12]} exd5 {[%emt 0:01:35]} 26. exd5 {[%emt 0:02:33]} Qb4 {[%emt 0:00:53]} 27. Qg5+ {[%emt 0:01:16]} Bg7 {[%emt 0:00:29]} 28. Rd1 {[%emt 0:00:08]} Re8 {[%emt 0:01:39]} 29. Kh2 {[%emt 0:08:30]} Qd6+ {[%emt 0:00:15]} 30. Kh3 {[%emt 0:01:01]} a5 {[%emt 0:01:57]} 31. Qxh4 {[%emt 0:03:08]} Rd8 {[%emt 0:01:20]} 32. g3 {[%emt 0:01:08]} Qh6 {[%emt 0:00:36]} 33. Bh5 {[%emt 0:03:40]} Bf6 {[%emt 0:00:29]} 34. Qg4+ {[%emt 0:00:29]} Qg5 {[%emt 0:00:12]} 35. Qxg5+ {[%emt 0:20:49]} Bxg5 {[%emt 0:00:01]} 36. Be2 {[%emt 0:00:11]} Rd6 {[%emt 0:00:21]} 37. Bb5 {[%emt 0:00:10]} Be7 {[%emt 0:00:58]} 38. Bc6 {[%emt 0:00:29]} Rg6 {[%emt 0:00:46]} 39. f4 {[%emt 0:01:13]} Bd6 {[%emt 0:00:21]} 40. Rd4 {[%emt 0:00:00]} Kg7 {[%emt 0:00:00]} 41. Re4 {[%emt 0:01:11]} Rh6+ {[%emt 0:05:26]} 42. Kg2 {[%emt 0:01:51]} Rh8 {[%emt 0:00:02]} 43. Be8 {[%emt 0:00:16]} Kf8 {[%emt 0:08:50]} 44. Bc6 {[%emt 0:02:27]} Kg7 {[%emt 0:00:08]} 45. Kf3 {[%emt 0:01:07]} Rb8 {[%emt 0:00:35]} 46. Ra4 {[%emt 0:07:37]} Rb3+ {[%emt 0:04:05]} 47. Kg4 {[%emt 0:01:43]} Bb4 {[%emt 0:00:05]} 48. Ra1 {[%emt 0:00:37]} Rd3 1/2-1/2

[Event "European-ch Seniors 2018"]
[Site "Drammen"]
[Date "2018.08.10"]
[Round "7"]
[White "Barle, Janez"]
[Black "Bogdanov, Valentin"]
[Result "1/2-1/2"]
[ECO "A48"]
[WhiteElo "2249"]
[BlackElo "2356"]
[Annotator "NA"]
[PlyCount "65"]
[EventDate "2018.08.04"]
[EventType "swiss"]
[EventCountry "NOR"]
[SourceTitle "playchess.com"]
[Source "ChessBase"]
[SourceQuality "1"]
[TimeControl "40/5400+30:1800+30"]

1. d4 {[%emt 0:00:00]} Nf6 {[%emt 0:00:11]} 2. Nf3 {[%emt 0:00:06]} g6 {[%emt 0:01:37]} 3. Nc3 {[%emt 0:00:47]} d5 {[%emt 0:00:44]} 4. Bf4 {[%emt 0:00:11]} Bg7 {[%emt 0:00:52]} 5. Nb5 {[%emt 0:00:19]} Na6 {[%emt 0:00:57]} 6. e3 {[%emt 0:00:50]} O-O {[%emt 0:05:34]} 7. Be2 {[%emt 0:05:26]} Ne4 {[%emt 0:08:26]} 8. Nd2 {[%emt 0:10:33]} c5 {[%emt 0:05:01]} 9. Nxe4 {[%emt 0:02:03]} dxe4 {[%emt 0:00:09]} 10. c3 {[%emt 0:05:20]} Bd7 {[%emt 0:09:58]} 11. Qb3 {[%emt 0:09:26]} Be6 {[%emt 0:06:41]} 12. Qa4 {[%emt 0:01:52]} Qb6 {[%emt 0:01:31]} 13. O-O {[%emt 0:01:15]} Rac8 {[%emt 0:02:20]} 14. Rac1 {[%emt 0:14:52]} Bd7 {[%emt 0:02:24]} 15. b3 {[%emt 0:01:21]} e5 {[%emt 0:06:28]} 16. dxe5 {[%emt 0:14:53]} Nc7 {[%emt 0:01:54]} 17. e6 {[%emt 0:14:29]} Nxe6 {[%emt 0:00:27]} 18. Qxa7 {[%emt 0:01:32]} Qc6 {[%emt 0:08:50]} 19. Qa3 {[%emt 0:04:54]} Nxf4 {[%emt 0:00:25]} 20. exf4 {[%emt 0:00:13]} Qb6 {[%emt 0:01:07]} 21. Qa7 {[%emt 0:00:16]} Qxa7 {[%emt 0:01:09]} 22. Nxa7 {[%emt 0:00:13]} Ra8 {[%emt 0:00:08]} 23. Nb5 {[%emt 0:01:38]} Rxa2 {[%emt 0:00:28]} 24. Bc4 {[%emt 0:00:16]} Bxb5 {[%emt 0:01:37]} 25. Bxb5 {[%emt 0:00:12]} Rd8 {[%emt 0:00:12]} 26. Bc4 {[%emt 0:05:46]} Rdd2 {[%emt 0:00:56]} 27. b4 {[%emt 0:00:45]} Rab2 {[%emt 0:00:18]} 28. Rce1 {[%emt 0:01:45]} b5 {[%emt 0:02:53]} 29. Bxb5 {[%emt 0:00:42]} cxb4 {[%emt 0:02:23]} 30. cxb4 {[%emt 0:00:45]} Bd4 {[%emt 0:00:16]} 31. Rxe4 {[%emt 0:00:45]} Kg7 {[%emt 0:05:53]} 32. g3 {[%emt 0:00:52]} Rxb4 {[%emt 0:01:17]} 33. Re2 {[%emt 0:00:24]} 1/2-1/2

[Event "European-ch Seniors 2018"]
[Site "Drammen"]
[Date "2018.08.10"]
[Round "7"]
[White "Lederman, Leon S"]
[Black "Malmdin, Nils Ake"]
[Result "1-0"]
[ECO "B01"]
[WhiteElo "2245"]
[BlackElo "2135"]
[Annotator "NA"]
[PlyCount "123"]
[EventDate "2018.08.04"]
[EventType "swiss"]
[EventCountry "NOR"]
[SourceTitle "playchess.com"]
[Source "ChessBase"]
[SourceQuality "1"]
[TimeControl "40/5400+30:1800+30"]

1. e4 {[%emt 0:00:00]} d5 {[%emt 0:00:13]} 2. exd5 {[%emt 0:00:00]} Nf6 {[%emt 0:00:13]} 3. Bb5+ {[%emt 0:00:00]} Nbd7 {[%emt 0:00:23]} 4. Nc3 {[%emt 0:04:09]} a6 {[%emt 0:00:31]} 5. Be2 {[%emt 0:03:53]} Nb6 {[%emt 0:03:15]} 6. d4 {[%emt 0:00:18]} Nbxd5 {[%emt 0:01:18]} 7. Nxd5 {[%emt 0:00:06]} Qxd5 {[%emt 0:01:45]} 8. Nf3 {[%emt 0:00:20]} e6 {[%emt 0:16:10]} 9. O-O {[%emt 0:01:33]} Be7 {[%emt 0:01:31]} 10. c4 {[%emt 0:03:35]} Qd8 {[%emt 0:00:46]} 11. Qa4+ {[%emt 0:02:44]} Bd7 {[%emt 0:02:13]} 12. Qb3 {[%emt 0:00:06]} Rb8 {[%emt 0:05:21]} 13. Ne5 {[%emt 0:09:33]} O-O {[%emt 0:02:26]} 14. Bf4 {[%emt 0:05:48]} Bd6 {[%emt 0:07:08]} 15. Rfd1 {[%emt 0:00:46]} Qe7 {[%emt 0:02:36]} 16. Bf3 {[%emt 0:02:32]} h6 {[%emt 0:05:20]} 17. Rd2 Be8 {[%emt 0:14:25]} 18. c5 {[%emt 0:18:40]} Bxe5 {[%emt 0:00:09]} 19. Bxe5 {[%emt 0:00:24]} Nh7 {[%emt 0:14:11]} 20. h4 {[%emt 0:06:41]} f6 {[%emt 0:01:21]} 21. Bg3 {[%emt 0:00:10]} f5 {[%emt 0:01:01]} 22. Qe3 {[%emt 0:03:03]} Qf7 {[%emt 0:01:55]} 23. Be5 {[%emt 0:00:39]} Nf6 {[%emt 0:00:54]} 24. Qf4 {[%emt 0:00:16]} Bc6 {[%emt 0:02:44]} 25. Bxc6 {[%emt 0:04:21]} bxc6 {[%emt 0:00:21]} 26. Bxf6 {[%emt 0:01:29]} Qxf6 {[%emt 0:00:30]} 27. Qxc7 {[%emt 0:00:05]} Rbc8 {[%emt 0:01:35]} 28. Qf4 {[%emt 0:01:23]} Rfd8 {[%emt 0:00:16]} 29. Rad1 {[%emt 0:01:44]} Rd5 {[%emt 0:00:31]} 30. b4 {[%emt 0:00:45]} g5 {[%emt 0:00:51]} 31. hxg5 {[%emt 0:03:14]} hxg5 {[%emt 0:00:02]} 32. Qg3 {[%emt 0:01:39]} Kf7 {[%emt 0:02:52]} 33. Re1 {[%emt 0:11:48]} f4 {[%emt 0:05:15]} 34. Qd3 {[%emt 0:11:06]} Rh8 {[%emt 0:01:40]} 35. Qe4 {[%emt 0:01:33]} Qh6 {[%emt 0:02:21]} 36. Kf1 {[%emt 0:00:42]} g4 {[%emt 0:01:35]} 37. Ke2 {[%emt 0:00:24]} Qf6 {[%emt 0:00:56]} 38. Kd1 {[%emt 0:00:40]} Rhd8 {[%emt 0:00:57]} 39. Kc2 {[%emt 0:02:04]} Rxd4 {[%emt 0:00:33]} 40. Rxd4 {[%emt 0:00:00]} Rxd4 {[%emt 0:00:00]} 41. Qh7+ {[%emt 0:01:47]} Kf8 {[%emt 0:00:46]} 42. Kb3 {[%emt 0:00:10]} Rd2 {[%emt 0:06:26]} 43. a3 {[%emt 0:01:21]} Qb2+ {[%emt 0:11:09]} 44. Ka4 {[%emt 0:00:17]} Qc2+ {[%emt 0:00:04]} 45. Qxc2 {[%emt 0:00:09]} Rxc2 {[%emt 0:00:02]} 46. f3 {[%emt 0:02:21]} Ke7 {[%emt 0:03:55]} 47. Re4 {[%emt 0:04:59]} Rxg2 {[%emt 0:00:47]} 48. Rxf4 {[%emt 0:00:06]} g3 {[%emt 0:00:31]} 49. Rg4 {[%emt 0:00:13]} Rg1 {[%emt 0:00:45]} 50. Ka5 {[%emt 0:00:10]} g2 {[%emt 0:00:27]} 51. Kb6 {[%emt 0:00:17]} Rf1 {[%emt 0:01:04]} 52. Rxg2 {[%emt 0:00:09]} Rxf3 {[%emt 0:00:09]} 53. Ra2 {[%emt 0:01:34]} e5 {[%emt 0:02:21]} 54. Kxa6 {[%emt 0:00:49]} e4 {[%emt 0:03:15]} 55. Kb6 {[%emt 0:04:11]} Kd7 {[%emt 0:02:16]} 56. a4 {[%emt 0:05:42]} Rb3 {[%emt 0:00:41]} 57. Rd2+ {[%emt 0:00:47]} Rd3 {[%emt 0:00:14]} 58. Rh2 {[%emt 0:01:12]} Rd4 {[%emt 0:01:57]} 59. b5 {[%emt 0:01:03]} cxb5 {[%emt 0:02:06]} 60. c6+ {[%emt 0:00:15]} Ke6 {[%emt 0:01:45]} 61. axb5 {[%emt 0:00:07]} e3 {[%emt 0:00:12]} 62. c7 {[%emt 0:02:05]} 1-0